[Event "Seniors-LEM-65 Sachsen-Anhalt 2024"]
[Site "Magdeburg"]
[Date "2024.07.05"]
[Round "5.20"]
[White "Schulz, Hans-Werner"]
[Black "Gehrmann, Rudolf-Rainer"]
[Result "0-1"]
[ECO "D02"]
[WhiteElo "1896"]
[BlackElo "1980"]
[Annotator "RC"]
[PlyCount "102"]
[EventDate "2024.06.25"]
[EventType "swiss"]
[EventCountry "GER"]
[SourceTitle "playchess.com"]
[Source "ChessBase"]
[SourceQuality "1"]
[TimeControl "40/5400+30:1800+30"]

1. Nf3 {[%emt 0:00:03]} g6 {[%emt 0:00:24]} 2. g3 {[%emt 0:00:11]} Bg7 {[%emt 0:00:18]} 3. Bg2 {[%emt 0:00:05]} d5 {[%emt 0:00:41]} 4. d4 {[%emt 0:00:07]} Nf6 {[%emt 0:00:28]} 5. O-O {[%emt 0:00:17]} O-O {[%emt 0:00:19]} 6. e3 {[%emt 0:03:12]} Nbd7 {[%emt 0:01:44]} 7. b3 {[%emt 0:01:29]} Re8 {[%emt 0:01:37]} 8. Bb2 {[%emt 0:00:05]} c6 {[%emt 0:02:06]} 9. Nbd2 {[%emt 0:01:20]} e5 {[%emt 0:04:32]} 10. dxe5 {[%emt 0:00:16]} Ng4 {[%emt 0:00:27]} 11. Rb1 {[%emt 0:02:13]} Ngxe5 {[%emt 0:01:14]} 12. Nxe5 {[%emt 0:00:21]} Nxe5 {[%emt 0:00:17]} 13. Bd4 {[%emt 0:04:23]} Bg4 {[%emt 0:04:34]} 14. Qc1 {[%emt 0:02:58]} Qc7 {[%emt 0:02:47]} 15. h3 {[%emt 0:04:34]} Be6 {[%emt 0:03:13]} 16. Qd1 {[%emt 0:01:14]} c5 {[%emt 0:03:47]} 17. Ba1 {[%emt 0:00:07]} Rad8 {[%emt 0:00:17]} 18. Nf3 {[%emt 0:00:21]} f6 {[%emt 0:06:12]} 19. Nxe5 {[%emt 0:04:49]} fxe5 {[%emt 0:00:46]} 20. Qe2 {[%emt 0:07:52]} d4 {[%emt 0:12:59]} 21. c4 {[%emt 0:07:32]} Qd7 {[%emt 0:06:27]} 22. g4 {[%emt 0:01:02]} Bf7 {[%emt 0:06:13]} 23. Be4 {[%emt 0:05:44]} Rf8 {[%emt 0:04:06]} 24. Rbd1 {[%emt 0:01:26]} Qe7 {[%emt 0:04:38]} 25. exd4 {[%emt 0:03:33]} exd4 {[%emt 0:02:04]} 26. Rfe1 {[%emt 0:20:15]} Qc7 {[%emt 0:03:24]} 27. f3 {[%emt 0:03:10]} Rde8 {[%emt 0:01:23]} 28. Qg2 {[%emt 0:01:24]} b6 {[%emt 0:04:32]} 29. Bb2 {[%emt 0:00:24]} Be5 {[%emt 0:05:42]} 30. Bc1 {[%emt 0:01:09]} Bf4 {[%emt 0:00:54]} 31. Bxf4 {[%emt 0:04:48]} Qxf4 {[%emt 0:00:10]} 32. Qd2 {[%emt 0:00:45]} Qg3+ {[%emt 0:01:43]} 33. Qg2 {[%emt 0:00:05]} Qd6 {[%emt 0:00:56]} 34. Re2 {[%emt 0:03:26]} Kg7 {[%emt 0:07:26]} 35. Qf2 {[%emt 0:04:20]} g5 {[%emt 0:01:10]} 36. h4 {[%emt 0:01:56]} Bg6 {[%emt 0:02:17]} 37. Bxg6 {[%emt 0:08:11]} Qxg6 {[%emt 0:02:18]} 38. Rxe8 {[%emt 0:01:43]} Rxe8 {[%emt 0:01:23]} 39. hxg5 {[%emt 0:02:14]} Qxg5 {[%emt 0:01:47]} 40. Re1 {[%emt 0:00:00]} Rf8 {[%emt 0:00:00]} 41. Kg2 {[%emt 0:05:04]} Rf7 {[%emt 0:33:45]} 42. Kh3 Rf6 {[%emt 0:00:00]} 43. Re7+ {[%emt 0:02:58]} Kg8 {[%emt 0:00:00]} 44. Rxa7 {[%emt 0:05:57]} Rh6+ {[%emt 0:00:00]} 45. Kg2 {[%emt 0:05:29]} Qf4 {[%emt 0:00:00]} 46. Ra8+ {[%emt 0:00:14]} Kf7 {[%emt 0:00:00]} 47. Ra7+ {[%emt 0:00:04]} Kf6 {[%emt 0:00:00]} 48. g5+ {[%emt 0:01:39]} Qxg5+ {[%emt 0:00:00]} 49. Kf1 {[%emt 0:02:45]} Qc1+ {[%emt 0:00:00]} 50. Kg2 {[%emt 0:00:34]} Rg6+ {[%emt 0:00:00]} 51. Kh3 {[%emt 0:01:40]} Qh1+ {[%emt 0:05:00]} 0-1

[Event "Seniors-LEM-65 Sachsen-Anhalt 2024"]
[Site "Magdeburg"]
[Date "2024.07.05"]
[Round "5.21"]
[White "Stummeyer, Dieter"]
[Black "Renner, Bernd"]
[Result "0-1"]
[ECO "B92"]
[WhiteElo "1884"]
[BlackElo "1997"]
[Annotator "RC"]
[PlyCount "84"]
[EventDate "2024.06.25"]
[EventType "swiss"]
[EventCountry "GER"]
[SourceTitle "playchess.com"]
[Source "ChessBase"]
[SourceQuality "1"]
[TimeControl "40/5400+30:1800+30"]

1. e4 {[%emt 1:31:00]} c5 {[%emt 1:31:00]} 2. Nf3 d6 3. d4 {[%emt 0:01:00]} cxd4 4. Nxd4 {[%emt 0:00:30]} Nf6 {[%emt 0:01:30]} 5. Nc3 a6 6. Be2 {[%emt 0:01:00]} e5 {[%emt 0:01:00]} 7. Nb3 Be7 {[%emt 0:00:30]} 8. O-O {[%emt 0:01:00]} O-O {[%emt 0:00:30]} 9. Be3 {[%emt 0:00:30]} Be6 {[%emt 0:00:30]} 10. Qd2 {[%emt 0:00:30]} Qc7 {[%emt 0:00:30]} 11. f3 {[%emt 0:00:30]} Nbd7 {[%emt 0:00:30]} 12. Rfc1 {[%emt 0:00:30]} Nb6 {[%emt 0:00:30]} 13. Qe1 {[%emt 0:00:30]} d5 {[%emt 0:00:30]} 14. exd5 {[%emt 0:00:30]} Nbxd5 {[%emt 0:00:30]} 15. Nxd5 {[%emt 0:00:30]} Nxd5 {[%emt 0:00:30]} 16. Bf2 {[%emt 0:00:30]} Bg5 {[%emt 0:00:30]} 17. c4 {[%emt 0:00:30]} Nf4 {[%emt 0:00:30]} 18. Bf1 {[%emt 0:00:30]} Ng6 19. Rc3 {[%emt 0:00:30]} Rfd8 {[%emt 0:01:00]} 20. Be3 {[%emt 0:00:30]} Be7 {[%emt 0:00:30]} 21. Qf2 {[%emt 0:00:30]} Qc8 {[%emt 0:00:30]} 22. Rac1 {[%emt 0:00:30]} Nf8 {[%emt 0:00:30]} 23. c5 {[%emt 0:00:30]} Bd7 {[%emt 0:00:30]} 24. Na5 {[%emt 0:00:30]} Bc6 {[%emt 0:00:30]} 25. Nc4 {[%emt 0:00:30]} Qc7 {[%emt 0:00:30]} 26. Nb6 {[%emt 0:00:30]} Rab8 {[%emt 0:00:30]} 27. f4 {[%emt 0:00:30]} Bf6 {[%emt 0:00:30]} 28. Rc4 {[%emt 0:00:30]} Ne6 {[%emt 0:00:30]} 29. f5 {[%emt 0:00:30]} Nd4 {[%emt 0:00:30]} 30. Bxd4 {[%emt 0:00:30]} exd4 {[%emt 0:00:30]} 31. Bd3 {[%emt 0:00:30]} Bb5 {[%emt 0:00:30]} 32. Qf3 {[%emt 0:00:30]} Bxc4 {[%emt 0:00:30]} 33. Bxc4 {[%emt 0:00:30]} d3 {[%emt 0:00:30]} 34. Bxd3 {[%emt 0:00:30]} Bxb2 {[%emt 0:00:30]} 35. Rc2 {[%emt 0:00:30]} Bd4+ {[%emt 0:00:30]} 36. Kf1 Qxh2 {[%emt 0:00:30]} 37. Be4 {[%emt 0:01:00]} Qg1+ {[%emt 0:00:30]} 38. Ke2 {[%emt 0:00:30]} Bxc5 {[%emt 0:00:30]} 39. Nd5 {[%emt 0:00:30]} Qd4 {[%emt 0:00:30]} 40. f6 {[%emt 0:00:30]} Rxd5 {[%emt 0:00:30]} 41. Bxd5 {[%emt 0:30:30]} Re8+ 42. Kf1 {[%emt 0:00:30]} Qg1# {[%emt 0:31:00]} 0-1

[Event "Seniors-LEM-65 Sachsen-Anhalt 2024"]
[Site "Magdeburg"]
[Date "2024.07.05"]
[Round "5.23"]
[White "Matthey, Harald"]
[Black "Bielfeldt, Michael"]
[Result "1-0"]
[ECO "A14"]
[WhiteElo "2064"]
[BlackElo "1810"]
[Annotator "NA RC"]
[PlyCount "57"]
[EventDate "2024.06.25"]
[EventType "swiss"]
[EventCountry "GER"]
[SourceTitle "playchess.com"]
[Source "ChessBase"]
[SourceQuality "1"]
[TimeControl "40/5400+30:1800+30"]

1. Nf3 {[%emt 0:00:02]} d5 {[%emt 0:00:12]} 2. g3 {[%emt 0:00:08]} Nf6 {[%emt 0:00:23]} 3. Bg2 {[%emt 0:00:07]} e6 {[%emt 0:00:17]} 4. O-O {[%emt 0:00:10]} Be7 {[%emt 0:01:14]} 5. d3 {[%emt 0:00:12]} O-O {[%emt 0:00:38]} 6. b3 {[%emt 0:01:57]} c6 {[%emt 0:01:06]} 7. Bb2 {[%emt 0:00:15]} Nbd7 {[%emt 0:00:42]} 8. c4 {[%emt 0:00:50]} b6 {[%emt 0:01:12]} 9. Nc3 {[%emt 0:01:05] A14: English Opening: 1...e6 with b3 by White.} Bb7 {[%emt 0:01:11]} 10. e4 {[%emt 0:00:54]} dxe4 {[%emt 0:02:50]} 11. dxe4 {[%emt 0:00:32]} c5 {[%emt 0:01:08]} 12. e5 {[%emt 0:05:26]} Ne8 {[%emt 0:00:08]} 13. Qe2 {[%emt 0:01:12]} g6 {[%emt 0:04:58]} 14. Rad1 {[%emt 0:04:56]} Qc7 {[%emt 0:01:35]} 15. Nb5 {[%emt 0:00:37]} Qc8 {[%emt 0:01:38]} 16. Qd2 {[%emt 0:01:21]} Bc6 {[%emt 0:06:06]} 17. Ne1 {[%emt 0:09:56]} Nb8 {[%emt 0:03:20]} 18. Nd6 {[%emt 0:02:08]} Qc7 {[%emt 0:00:46]} 19. h4 {[%emt 0:09:24]} ({Better is} 19. Bh3) 19... Ng7 {[%emt 0:01:15]} 20. g4 {[%emt 0:09:16]} Bxg2 {[%emt 0:08:22]} 21. Nxg2 {[%emt 0:00:55]} h5 {[%emt 0:00:24]} 22. f3 {[%emt 0:00:50]} a6 {[%emt 0:07:37]} 23. Ne4 {[%emt 0:04:55]} Kh7 {[%emt 0:09:24]} 24. Nf6+ {[%emt 0:01:51]} Bxf6 {[%emt 0:02:14]} 25. exf6 {[%emt 0:00:27]} Ne8 {[%emt 0:05:56]} 26. Qg5 {[%emt 0:07:23]} Rh8 {[%emt 0:03:23]} 27. gxh5 {[%emt 0:04:48]} gxh5 {[%emt 0:00:09]} 28. Be5 {[%emt 0:01:04]} Qc6 {[%emt 0:01:57]} 29. Rd8 {[%emt 0:01:06]} 1-0

[Event "Seniors-LEM-65 Sachsen-Anhalt 2024"]
[Site "Magdeburg"]
[Date "2024.07.05"]
[Round "5.24"]
[White "Manthey, Wolfgang"]
[Black "Kopp, Peter"]
[Result "0-1"]
[ECO "A46"]
[WhiteElo "1888"]
[BlackElo "2014"]
[Annotator "RC"]
[PlyCount "48"]
[EventDate "2024.06.25"]
[EventType "swiss"]
[EventCountry "GER"]
[SourceTitle "playchess.com"]
[Source "ChessBase"]
[SourceQuality "1"]
[TimeControl "40/5400+30:1800+30"]

1. d4 {[%emt 0:00:05]} Nf6 {[%emt 0:00:11]} 2. Nf3 {[%emt 0:00:10]} d6 {[%emt 0:00:11]} 3. h3 {[%emt 0:00:46]} Nbd7 {[%emt 0:00:16]} 4. e3 {[%emt 0:01:22]} e5 {[%emt 0:00:21]} 5. dxe5 {[%emt 0:01:54]} dxe5 {[%emt 0:00:12]} 6. Bc4 {[%emt 0:02:23]} Be7 {[%emt 0:01:20]} 7. O-O {[%emt 0:01:00]} O-O {[%emt 0:00:15]} 8. Qe2 {[%emt 0:01:05]} c6 {[%emt 0:00:24]} 9. Rd1 {[%emt 0:02:10]} Qc7 {[%emt 0:00:39]} 10. a3 {[%emt 0:00:34]} e4 {[%emt 0:04:21]} 11. Nfd2 {[%emt 0:01:04]} Qe5 {[%emt 0:01:05]} 12. Nc3 {[%emt 0:02:49]} b5 {[%emt 0:02:57]} 13. Ba2 {[%emt 0:00:16]} Re8 {[%emt 0:02:05]} 14. Nf1 {[%emt 0:02:09]} Bd6 {[%emt 0:05:34]} 15. Ng3 {[%emt 0:02:14]} Bc7 {[%emt 0:01:53]} 16. Rd4 {[%emt 0:04:19]} c5 {[%emt 0:04:21]} 17. Rd1 {[%emt 0:01:08]} c4 {[%emt 0:01:05]} 18. Nd5 {[%emt 0:00:34]} Nxd5 {[%emt 1:12:20]} 19. Rd4 {[%emt 0:01:16]} N7f6 {[%emt 0:00:00]} 20. Bd2 {[%emt 0:02:57]} Bb6 {[%emt 0:00:00]} 21. Rxd5 {[%emt 0:00:48]} Nxd5 {[%emt 0:01:30]} 22. c3 {[%emt 1:10:27]} Be6 {[%emt 0:00:00]} 23. a4 {[%emt 0:00:00]} a6 {[%emt 0:00:00]} 24. Bb1 {[%emt 0:00:00]} Nf6 {[%emt 0:00:00]} 0-1

[Event "Seniors-LEM-65 Sachsen-Anhalt 2024"]
[Site "Magdeburg"]
[Date "2024.07.05"]
[Round "5.25"]
[White "Wolke, Reimund"]
[Black "Barten, Ralf"]
[Result "0-1"]
[ECO "B12"]
[WhiteElo "1871"]
[BlackElo "1970"]
[Annotator "NA RC"]
[PlyCount "100"]
[EventDate "2024.06.25"]
[EventType "swiss"]
[EventCountry "GER"]
[SourceTitle "playchess.com"]
[Source "ChessBase"]
[SourceQuality "1"]
[TimeControl "40/5400+30:1800+30"]

1. e4 {[%emt 0:00:05]} c6 {[%emt 0:00:05]} 2. d4 {[%emt 0:00:12]} d5 {[%emt 0:00:06]} 3. e5 {[%emt 0:00:20]} c5 {[%emt 0:00:30]} 4. c3 {[%emt 0:00:40]} Nc6 {[%emt 0:01:13]} 5. Nf3 {[%emt 0:00:26]} Bg4 {[%emt 0:00:51]} 6. Be2 {[%emt 0:01:39]} e6 {[%emt 0:00:30]} 7. O-O {[%emt 0:00:41]} Nge7 {[%emt 0:02:07] 7...Nge7 is better than 7...Bxf3. B12: Caro-Kann: Advance Variation.} 8. Nbd2 {[%emt 0:04:53]} Nf5 {[%emt 0:01:27]} 9. h3 {[%emt 0:01:29]} Bxf3 {[%emt 0:00:08]} 10. Nxf3 {[%emt 0:00:23]} cxd4 {[%emt 0:01:45]} 11. g4 {[%emt 0:02:53]} Nh4 {[%emt 0:02:21]} 12. cxd4 {[%emt 0:05:13]} Nxf3+ {[%emt 0:00:28]} 13. Bxf3 {[%emt 0:00:15]} Be7 $146 {[%emt 0:00:44]} ({Predecessor:} 13... Bb4 14. a3 Ba5 15. b4 Bb6 16. Be3 O-O 17. Qd2 f6 18. Bg2 fxe5 19. dxe5 Nxe5 20. Bxb6 Qxb6 {0-1 Kolar,S (2081)-Svatos,J (2306) CZE-ch Ostrava 2014 (1)}) 14. Be3 {[%emt 0:02:07]} Bg5 {[%emt 0:08:33]} 15. Qb3 {[%emt 0:05:18]} Bxe3 {[%emt 0:02:03]} 16. Qxe3 {[%emt 0:05:23]} Qb6 {[%emt 0:01:00]} 17. Rfd1 {[%emt 0:01:17]} O-O {[%emt 0:00:28]} 18. Rd2 {[%emt 0:04:24]} Rfc8 {[%emt 0:00:57]} 19. Rc1 {[%emt 0:01:21]} Rc7 {[%emt 0:01:34]} ({Better is} 19... Nb4 $15 20. Rxc8+ Rxc8) 20. Kg2 {[%emt 0:04:05]} Rac8 {[%emt 0:01:09]} 21. Rc3 {[%emt 0:03:53]} Na5 {[%emt 0:00:42]} 22. Rxc7 {[%emt 0:01:14]} Rxc7 {[%emt 0:00:14]} 23. b3 {[%emt 0:00:24]} g6 {[%emt 0:01:03]} 24. h4 {[%emt 0:05:50]} Rc8 {[%emt 0:09:54]} 25. h5 {[%emt 0:00:49]} Qd8 {[%emt 0:00:11]} 26. g5 {[%emt 0:04:00]} gxh5 {[%emt 0:04:35]} 27. Bxh5 {[%emt 0:03:07]} Nc6 {[%emt 0:01:38]} 28. f4 {[%emt 0:04:14]} (28. Qf4 $11 {remains equal.} Qf8 29. Rd3) 28... Ne7 {[%emt 0:01:28]} 29. Bg4 {[%emt 0:03:55]} Qd7 {[%emt 0:06:50]} 30. Qf2 {[%emt 0:09:50]} Rc3 {[%emt 0:01:46]} 31. Be2 {[%emt 0:02:46]} Qc8 {[%emt 0:03:07]} 32. Bd3 {[%emt 0:01:24] [#]} a6 {[%emt 0:05:12]} ({Better is} 32... Rc1 $1 $17 33. Rc2 Rxc2 34. Qxc2 Qxc2+ 35. Bxc2 Nc6) 33. Rc2 {[%emt 0:00:50]} ({White should try} 33. Bc2 $15) 33... Rxc2 {[%emt 0:00:50]} 34. Bxc2 {[%emt 0:01:41]} ({But not} 34. Qxc2 $6 Qxc2+ 35. Bxc2 Nc6 $11) 34... Qc3 $17 {[%emt 0:01:29]} 35. Bb1 {[%emt 0:05:13]} Nc6 {[%emt 0:02:57]} 36. f5 {[%emt 0:04:17]} Qxd4 {[%emt 0:01:04]} 37. Qe2 {[%emt 0:04:25]} Qxe5 {[%emt 0:00:34]} 38. Qf2 {[%emt 0:00:57]} Nd4 {[%emt 0:03:07]} 39. g6 {[%emt 0:01:02]} Qe2 {[%emt 0:00:36]} 40. gxf7+ {[%emt 0:00:58]} Kxf7 {[%emt 0:03:38]} 41. fxe6+ {[%emt 0:30:20]} Kxe6 {[%emt 0:30:06]} 42. Qxe2+ {[%emt 0:02:50]} Nxe2 {[%emt 0:00:03]} 43. Bxh7 {[%emt 0:01:05]} Nc3 {[%emt 0:02:08]} 44. a4 {[%emt 0:00:00]} a5 {[%emt 0:00:00]} 45. Kf3 {[%emt 0:00:00]} d4 {[%emt 0:00:00]} 46. Be4 {[%emt 0:00:00]} b6 {[%emt 0:00:00]} 47. Kf4 {[%emt 0:00:00]} Kd6 {[%emt 0:00:00]} 48. Bf3 {[%emt 0:00:00]} Kc5 {[%emt 0:00:00]} 49. Ke5 {[%emt 0:00:00]} d3 {[%emt 0:00:00]} 50. Bh5 {[%emt 0:00:00]} d2 {[%emt 0:00:00]} 0-1

[Event "Seniors-LEM-65 Sachsen-Anhalt 2024"]
[Site "Magdeburg"]
[Date "2024.07.05"]
[Round "5.26"]
[White "Mikolajewski, Armin"]
[Black "Gagelmann, Andreas"]
[Result "1-0"]
[ECO "A52"]
[WhiteElo "1961"]
[BlackElo "1883"]
[Annotator "NA RC"]
[PlyCount "107"]
[EventDate "2024.06.25"]
[EventType "swiss"]
[EventCountry "GER"]
[SourceTitle "playchess.com"]
[Source "ChessBase"]
[SourceQuality "1"]
[TimeControl "40/5400+30:1800+30"]

1. d4 {[%emt 0:00:05]} Nf6 {[%emt 0:00:08]} 2. c4 {[%emt 0:00:09]} e5 {[%emt 0:00:17]} 3. dxe5 {[%emt 0:02:28]} Ng4 {[%emt 0:00:06]} 4. Nf3 {[%emt 0:00:24]} Bc5 {[%emt 0:00:19]} 5. e3 {[%emt 0:00:13]} Nc6 {[%emt 0:00:08]} 6. Be2 {[%emt 0:00:47]} Ngxe5 {[%emt 0:00:06]} 7. O-O {[%emt 0:02:40]} O-O {[%emt 0:00:11]} 8. Bd2 {[%emt 0:01:36] A52: Budapest Gambit.} d6 {[%emt 0:00:21]} 9. Bc3 {[%emt 0:01:21]} Nxf3+ {[%emt 0:00:56]} 10. Bxf3 {[%emt 0:00:13]} Ne5 {[%emt 0:00:33]} 11. b4 {[%emt 0:08:17]} Nxf3+ {[%emt 0:00:45]} 12. Qxf3 {[%emt 0:00:12]} Bb6 {[%emt 0:00:09]} 13. Rd1 {[%emt 0:00:58]} Qh4 {[%emt 0:03:56]} 14. Qg3 {[%emt 0:05:38]} Qxg3 {[%emt 0:00:29]} 15. hxg3 {[%emt 0:00:14]} Be6 {[%emt 0:01:06]} 16. Nd2 {[%emt 0:04:05]} Rfd8 {[%emt 0:10:02]} 17. Bd4 {[%emt 0:02:43]} c5 {[%emt 0:02:43]} 18. Bc3 {[%emt 0:02:46]} d5 {[%emt 0:01:42]} 19. bxc5 {[%emt 0:01:51]} Bxc5 {[%emt 0:00:47]} 20. Nb3 {[%emt 0:00:16]} Be7 {[%emt 0:00:45]} 21. cxd5 {[%emt 0:00:58]} Bxd5 {[%emt 0:02:26]} 22. Bd4 {[%emt 0:00:39]} Bxb3 {[%emt 0:22:18]} 23. axb3 {[%emt 0:00:12]} b5 {[%emt 0:05:45]} 24. Ra6 {[%emt 0:01:47]} Bf6 {[%emt 0:04:37]} 25. Kf1 {[%emt 0:00:25]} Bxd4 {[%emt 0:01:05]} 26. exd4 {[%emt 0:00:09]} Kf8 {[%emt 0:00:36]} 27. Ke2 {[%emt 0:00:11]} Ke7 {[%emt 0:00:16]} 28. Kd3 {[%emt 0:00:23]} Rd6 {[%emt 0:00:32]} 29. Re1+ {[%emt 0:01:17]} Kd7 {[%emt 0:00:21]} 30. Rea1 {[%emt 0:00:27]} Rxa6 $11 {[%emt 0:00:46]} 31. Rxa6 {[%emt 0:00:12]} Kc7 {[%emt 0:00:31]} 32. d5 {[%emt 0:01:03]} Kb7 {[%emt 0:01:53]} 33. Rc6 {[%emt 0:00:12]} Rc8 {[%emt 0:01:13]} 34. Rxc8 {[%emt 0:00:34]} Kxc8 {[%emt 0:00:04]} 35. Kd4 {[%emt 0:00:14]} a5 {[%emt 0:00:48]} 36. Kc5 {[%emt 0:01:08]} a4 {[%emt 0:00:32]} 37. bxa4 {[%emt 0:00:30]} bxa4 {[%emt 0:00:15]} 38. Kb4 {[%emt 0:00:13]} Kd7 {[%emt 0:01:14]} 39. Kxa4 {[%emt 0:00:10]} Kd6 {[%emt 0:00:09]} 40. Kb4 {[%emt 0:00:22]} Kxd5 {[%emt 0:00:09]} 41. Kc3 {[%emt 0:30:24]} Ke4 {[%emt 0:33:39]} 42. Kd2 {[%emt 0:00:11]} g5 {[%emt 0:03:02]} 43. f3+ {[%emt 0:03:18]} Kf5 {[%emt 0:00:48]} 44. Ke3 {[%emt 0:01:41]} h5 {[%emt 0:02:42]} 45. Kf2 {[%emt 0:04:25]} Ke5 {[%emt 0:03:50]} 46. Ke3 {[%emt 0:11:39]} Kd5 {[%emt 0:01:49]} 47. Kd3 {[%emt 0:07:46]} f5 {[%emt 0:02:56]} 48. Ke3 {[%emt 0:00:08]} Ke5 {[%emt 0:07:50]} 49. f4+ {[%emt 0:01:06]} Kf6 {[%emt 0:02:29]} 50. Kd4 {[%emt 0:00:49]} gxf4 {[%emt 0:00:38]} 51. gxf4 {[%emt 0:00:13]} Ke6 {[%emt 0:04:27]} 52. Kc5 {[%emt 0:01:16]} h4 {[%emt 0:04:49]} 53. Kc6 {[%emt 0:05:41]} Ke7 {[%emt 0:01:25]} 54. Kd5 {[%emt 0:00:21]} 1-0

[Event "Seniors-LEM-65 Sachsen-Anhalt 2024"]
[Site "Magdeburg"]
[Date "2024.07.05"]
[Round "5.27"]
[White "Onasch, Gunnar"]
[Black "Boldt, Heinrich"]
[Result "1-0"]
[ECO "D15"]
[WhiteElo "1949"]
[BlackElo "1866"]
[Annotator "NA RC"]
[PlyCount "47"]
[EventDate "2024.06.25"]
[EventType "swiss"]
[EventCountry "GER"]
[SourceTitle "playchess.com"]
[Source "ChessBase"]
[SourceQuality "1"]
[TimeControl "40/5400+30:1800+30"]

1. d4 {[%emt 0:00:03]} d5 {[%emt 0:00:32]} 2. c4 {[%emt 0:00:08]} c6 {[%emt 0:00:08]} 3. Nf3 {[%emt 0:00:08]} Nf6 {[%emt 0:00:05]} 4. Nc3 {[%emt 0:00:09]} a6 {[%emt 0:00:22]} 5. e3 {[%emt 0:00:35]} Nbd7 {[%emt 0:01:16]} 6. b3 {[%emt 0:04:28]} g6 {[%emt 0:00:28]} 7. Bb2 {[%emt 0:00:26]} Bg7 {[%emt 0:00:24]} 8. Bd3 {[%emt 0:00:22]} O-O {[%emt 0:01:05]} 9. O-O {[%emt 0:00:49]} dxc4 {[%emt 0:00:48]} 10. bxc4 {[%emt 0:01:37]} Re8 {[%emt 0:00:34]} 11. e4 {[%emt 0:04:12]} e5 {[%emt 0:00:57]} 12. d5 {[%emt 0:07:16]} Nc5 {[%emt 0:09:42]} 13. Bc2 {[%emt 0:02:00]} Qa5 {[%emt 0:17:44]} 14. Rb1 {[%emt 0:21:56]} Nh5 {[%emt 0:01:20]} 15. Nd2 {[%emt 0:04:57]} Nf4 {[%emt 0:08:02]} 16. Nb3 {[%emt 0:02:30]} Nxb3 {[%emt 0:01:10]} 17. Bxb3 {[%emt 0:04:48]} Qd8 $14 {[%emt 0:03:56]} 18. Qf3 {[%emt 0:08:58]} h5 {[%emt 0:15:22]} 19. Kh1 {[%emt 0:03:57]} Bg4 {[%emt 0:02:34]} 20. Qe3 {[%emt 0:00:17]} Bh6 {[%emt 0:06:43]} 21. f3 {[%emt 0:05:22]} Bd7 {[%emt 0:05:58]} 22. g3 {[%emt 0:02:15]} Bh3 {[%emt 0:00:55]} 23. gxf4 {[%emt 0:01:14]} Bxf4 {[%emt 0:00:42]} 24. Qf2 {[%emt 0:02:08]} 1-0

[Event "Seniors-LEM-65 Sachsen-Anhalt 2024"]
[Site "Magdeburg"]
[Date "2024.07.05"]
[Round "5.28"]
[White "Schwarz, Hans"]
[Black "Heise, Juergen"]
[Result "1/2-1/2"]
[ECO "B23"]
[WhiteElo "1856"]
[BlackElo "1930"]
[Annotator "RC"]
[PlyCount "44"]
[EventDate "2024.06.25"]
[EventType "swiss"]
[EventCountry "GER"]
[SourceTitle "playchess.com"]
[Source "ChessBase"]
[SourceQuality "1"]
[TimeControl "40/5400+30:1800+30"]

1. e4 {[%emt 0:00:17]} c5 {[%emt 0:00:15]} 2. Nc3 {[%emt 0:00:07]} g6 {[%emt 0:00:11]} 3. f4 {[%emt 0:00:07]} Bg7 {[%emt 0:00:09]} 4. Nf3 {[%emt 0:00:07]} Nc6 {[%emt 0:00:17]} 5. Bb5 {[%emt 0:01:06]} Nd4 {[%emt 0:01:28]} 6. Nxd4 {[%emt 0:00:12]} cxd4 {[%emt 0:00:02]} 7. Ne2 {[%emt 0:00:13]} Qb6 {[%emt 0:00:36]} 8. Bc4 {[%emt 0:00:11]} e6 {[%emt 0:01:08]} 9. d3 {[%emt 0:00:17]} Ne7 {[%emt 0:02:02]} 10. Bb3 {[%emt 0:01:36]} d6 {[%emt 0:02:29]} 11. O-O {[%emt 0:00:25]} Bd7 {[%emt 0:01:13]} 12. Bd2 {[%emt 0:00:44]} O-O {[%emt 0:00:52]} 13. Qe1 {[%emt 0:00:48]} Bc6 {[%emt 0:05:44]} 14. Ba5 {[%emt 0:05:15]} Qb5 {[%emt 0:10:18]} 15. Bb4 {[%emt 0:04:45]} Rfd8 {[%emt 0:03:27]} 16. a4 {[%emt 0:02:29]} Qh5 {[%emt 0:01:30]} 17. Qf2 {[%emt 0:05:03]} a5 {[%emt 0:16:09]} 18. Ng3 {[%emt 0:06:17]} Qh4 {[%emt 0:02:49]} 19. Bd2 {[%emt 0:00:13]} d5 {[%emt 0:01:39]} 20. e5 {[%emt 0:03:37]} Nf5 {[%emt 0:02:31]} 21. Nxf5 {[%emt 0:04:46]} Qxf2+ {[%emt 0:00:05]} 22. Rxf2 {[%emt 0:00:30]} gxf5 {[%emt 0:00:10]} 1/2-1/2

[Event "Seniors-LEM-65 Sachsen-Anhalt 2024"]
[Site "Magdeburg"]
[Date "2024.07.05"]
[Round "5.29"]
[White "Niebuhr, Gerd"]
[Black "Boettcher, Frank"]
[Result "1/2-1/2"]
[ECO "D37"]
[WhiteElo "1917"]
[BlackElo "1848"]
[Annotator "RC"]
[PlyCount "26"]
[EventDate "2024.06.25"]
[EventType "swiss"]
[EventCountry "GER"]
[SourceTitle "playchess.com"]
[Source "ChessBase"]
[SourceQuality "1"]
[TimeControl "40/5400+30:1800+30"]

1. d4 {[%emt 0:00:06]} Nf6 {[%emt 0:00:18]} 2. Nf3 {[%emt 0:00:50]} d5 {[%emt 0:03:31]} 3. c4 {[%emt 0:00:39]} e6 {[%emt 0:00:40]} 4. Nc3 {[%emt 0:00:21]} Be7 {[%emt 0:02:52]} 5. Bf4 {[%emt 0:01:12]} O-O {[%emt 0:00:49]} 6. e3 {[%emt 0:00:14]} b6 {[%emt 0:01:00]} 7. cxd5 {[%emt 0:03:44]} exd5 {[%emt 0:01:35]} 8. Rc1 {[%emt 0:06:25]} c5 {[%emt 0:06:58]} 9. Bd3 {[%emt 0:03:26]} Bg4 {[%emt 0:03:40]} 10. Nb5 {[%emt 1:18:33]} Nc6 {[%emt 0:15:22]} 11. h3 {[%emt 0:00:00]} Bh5 {[%emt 0:06:59]} 12. Be2 {[%emt 0:00:00]} Rc8 {[%emt 0:01:21]} 13. O-O {[%emt 0:00:00]} a6 {[%emt 0:01:19]} 1/2-1/2